[Event "EYCC Girls-U14 2019"]
[Site "Bratislava"]
[Date "2019.08.06"]
[Round "5.14"]
[White "Karavitaki, Evaggelia"]
[Black "Sevcikova, Lucia"]
[Result "1/2-1/2"]
[ECO "B01"]
[WhiteElo "1681"]
[BlackElo "1800"]
[Annotator "NA"]
[PlyCount "100"]
[EventDate "2019.08.02"]
[EventType "swiss"]
[EventCountry "SVK"]
[SourceTitle "playchess.com"]
[Source "ChessBase"]
[SourceQuality "1"]
[TimeControl "40/5400+30:1800+30"]

1. e4 {[%emt 0:00:00]} d5 {[%emt 0:00:00]} 2. exd5 {[%emt 0:00:00]} Nf6 {[%emt 0:00:00]} 3. d4 {[%emt 0:02:30]} Bg4 {[%emt 0:00:11]} 4. f3 {[%emt 0:02:56]} Bf5 {[%emt 0:00:35]} 5. Bb5+ {[%emt 0:08:26]} Nbd7 {[%emt 0:01:27]} 6. Nc3 {[%emt 0:09:33]} a6 {[%emt 0:02:13]} 7. Bd3 {[%emt 0:01:21]} Bxd3 {[%emt 0:01:13]} 8. Qxd3 {[%emt 0:00:10]} Nb6 {[%emt 0:01:30]} 9. Nge2 {[%emt 0:01:12]} Nfxd5 {[%emt 0:01:38]} 10. Nxd5 {[%emt 0:09:29]} Qxd5 {[%emt 0:04:37]} 11. Qe4 {[%emt 0:06:57]} O-O-O {[%emt 0:04:31]} 12. Qxd5 {[%emt 0:07:42]} Nxd5 {[%emt 0:00:28]} 13. c3 {[%emt 0:01:03]} e6 {[%emt 0:01:44]} 14. Nf4 {[%emt 0:08:18]} Bd6 {[%emt 0:01:49]} 15. Nd3 {[%emt 0:02:23]} Rhe8 {[%emt 0:05:45]} 16. O-O {[%emt 0:03:56]} e5 {[%emt 0:03:09]} 17. c4 {[%emt 0:10:54]} Nb4 {[%emt 0:03:51]} 18. Nxb4 {[%emt 0:04:37]} Bxb4 {[%emt 0:01:29]} 19. a3 {[%emt 0:01:01]} Bf8 {[%emt 0:01:36]} 20. d5 {[%emt 0:01:51]} Bc5+ {[%emt 0:01:24]} 21. Kh1 {[%emt 0:00:08]} Bd4 {[%emt 0:01:33]} 22. Rb1 {[%emt 0:02:57]} e4 {[%emt 0:03:11]} 23. fxe4 {[%emt 0:01:21]} Rxe4 {[%emt 0:00:28]} 24. b3 {[%emt 0:01:26]} Re2 {[%emt 0:01:44]} 25. Bf4 {[%emt 0:02:12]} Rde8 {[%emt 0:01:37]} 26. Rbd1 {[%emt 0:01:47]} Bf6 {[%emt 0:03:33]} 27. Rd2 {[%emt 0:03:35]} Bc3 {[%emt 0:02:48]} 28. Rxe2 {[%emt 0:01:46]} Rxe2 {[%emt 0:00:05]} 29. Bc1 {[%emt 0:00:34]} f6 {[%emt 0:01:28]} 30. h3 {[%emt 0:00:31]} Bb2 {[%emt 0:01:29]} 31. Bxb2 {[%emt 0:02:49]} Rxb2 {[%emt 0:00:05]} 32. Rf3 {[%emt 0:00:11]} Ra2 {[%emt 0:01:09]} 33. a4 {[%emt 0:01:16]} Rb2 {[%emt 0:00:03]} 34. Kh2 {[%emt 0:00:52]} Kd7 {[%emt 0:00:23]} 35. Re3 {[%emt 0:01:09]} c6 {[%emt 0:01:18]} 36. dxc6+ {[%emt 0:00:30]} Kxc6 {[%emt 0:00:05]} 37. h4 {[%emt 0:00:32]} h5 {[%emt 0:01:29]} 38. Rg3 {[%emt 0:00:30]} a5 {[%emt 0:01:10]} 39. Re3 {[%emt 0:00:29]} Kc5 {[%emt 0:01:43]} 40. Rg3 {[%emt 0:00:00]} b6 {[%emt 0:00:00]} 41. Rxg7 {[%emt 0:10:35]} Rxb3 {[%emt 0:14:30]} 42. Rh7 {[%emt 0:01:48]} Kxc4 {[%emt 0:01:56]} 43. Rxh5 {[%emt 0:00:25]} Rb4 {[%emt 0:00:37]} 44. Rf5 {[%emt 0:02:02]} Kb3 {[%emt 0:00:21]} 45. Rb5 {[%emt 0:03:50]} Rxb5 {[%emt 0:02:20]} 46. axb5 {[%emt 0:00:13]} a4 {[%emt 0:00:02]} 47. h5 {[%emt 0:00:10]} a3 {[%emt 0:00:06]} 48. h6 {[%emt 0:00:08]} a2 {[%emt 0:00:03]} 49. h7 {[%emt 0:00:07]} a1=Q {[%emt 0:00:04]} 50. h8=Q {[%emt 0:00:07]} Qe5+ {[%emt 0:00:19]} 1/2-1/2

[Event "EYCC Girls-U14 2019"]
[Site "Bratislava"]
[Date "2019.08.06"]
[Round "5.15"]
[White "Nadzamova, Viktoria"]
[Black "Kiousi, Panagiota"]
[Result "1-0"]
[ECO "B51"]
[WhiteElo "1854"]
[BlackElo "1895"]
[Annotator "NA"]
[PlyCount "81"]
[EventDate "2019.08.02"]
[EventType "swiss"]
[EventCountry "SVK"]
[SourceTitle "playchess.com"]
[Source "ChessBase"]
[SourceQuality "1"]
[TimeControl "40/5400+30:1800+30"]

1. e4 {[%emt 0:00:00]} c5 {[%emt 0:00:00]} 2. Nf3 {[%emt 0:00:00]} d6 {[%emt 0:00:00]} 3. Bb5+ {[%emt 0:00:00]} Nd7 {[%emt 0:00:00]} 4. O-O {[%emt 0:00:00]} a6 {[%emt 0:00:00]} 5. Bd3 {[%emt 0:00:03]} b5 {[%emt 0:00:00]} 6. c3 {[%emt 0:00:14]} c4 {[%emt 0:00:00]} 7. Bc2 {[%emt 0:00:06]} Ngf6 {[%emt 0:00:09]} 8. b3 {[%emt 0:00:31]} Bb7 {[%emt 0:08:41]} 9. bxc4 {[%emt 0:03:18]} bxc4 {[%emt 0:00:07]} 10. Re1 {[%emt 0:01:33]} e6 {[%emt 0:04:03]} 11. Na3 {[%emt 0:05:26]} Qc7 {[%emt 0:00:36]} 12. Rb1 {[%emt 0:01:07]} Be7 {[%emt 0:01:15]} 13. Qe2 {[%emt 0:18:22]} Nb6 {[%emt 0:04:45]} 14. Qe3 {[%emt 0:05:25]} Nfd7 {[%emt 0:00:27]} 15. e5 {[%emt 0:08:22]} Rc8 {[%emt 0:28:46]} 16. exd6 {[%emt 0:21:26]} Bxd6 {[%emt 0:00:41]} 17. h3 {[%emt 0:01:42]} h6 {[%emt 0:09:42]} 18. d4 {[%emt 0:07:05]} Nd5 {[%emt 0:01:45]} 19. Qe4 {[%emt 0:03:09]} N7f6 {[%emt 0:06:53]} 20. Ba4+ {[%emt 0:01:50]} Ke7 {[%emt 0:01:22]} 21. Qc2 {[%emt 0:00:25]} Nb6 {[%emt 0:06:43]} 22. Ra1 {[%emt 0:03:02]} Be4 {[%emt 0:07:37]} 23. Qd1 {[%emt 0:00:10]} Nbd5 {[%emt 0:00:33]} 24. Bb2 {[%emt 0:02:37]} Rb8 {[%emt 0:00:12]} 25. Qc1 {[%emt 0:02:16]} Qb6 {[%emt 0:01:04]} 26. Nxc4 {[%emt 0:00:32]} Qc7 {[%emt 0:00:32]} 27. Nxd6 {[%emt 0:00:14]} Rxb2 {[%emt 0:00:28]} 28. Nxe4 {[%emt 0:00:45]} Rhb8 {[%emt 0:00:51]} 29. Bb3 {[%emt 0:00:30]} Nxe4 {[%emt 0:00:16]} 30. Qxb2 {[%emt 0:00:43]} Nexc3 {[%emt 0:00:35]} 31. Qa3+ {[%emt 0:00:10]} Ke8 {[%emt 0:00:12]} 32. Rac1 {[%emt 0:00:57]} Qd7 {[%emt 0:03:27]} 33. Bxd5 {[%emt 0:00:49]} Nxd5 {[%emt 0:00:03]} 34. Qxa6 {[%emt 0:01:08]} Nb4 {[%emt 0:00:12]} 35. Qe2 {[%emt 0:00:25]} Ra8 {[%emt 0:01:02]} 36. Qc4 {[%emt 0:00:41]} Qd6 {[%emt 0:01:06]} 37. Rb1 {[%emt 0:01:15]} Nd5 {[%emt 0:01:53]} 38. Ne5 {[%emt 0:00:28]} Ne7 {[%emt 0:01:44]} 39. Qc5 {[%emt 0:01:35]} Qd8 {[%emt 0:00:29]} 40. Nc6 {[%emt 0:00:00]} Nxc6 {[%emt 0:00:00]} 41. Qxc6+ {[%emt 0:01:16]} 1-0

[Event "EYCC Girls-U14 2019"]
[Site "Bratislava"]
[Date "2019.08.06"]
[Round "5.16"]
[White "Volovich, Julia"]
[Black "Hrebenshchykova, Yelyzaveta"]
[Result "0-1"]
[ECO "A53"]
[WhiteElo "1726"]
[BlackElo "1955"]
[Annotator "NA"]
[PlyCount "92"]
[EventDate "2019.08.02"]
[EventType "swiss"]
[EventCountry "SVK"]
[SourceTitle "playchess.com"]
[Source "ChessBase"]
[SourceQuality "1"]
[TimeControl "40/5400+30:1800+30"]

1. d4 {[%emt 0:00:00]} Nf6 {[%emt 0:00:00]} 2. c4 {[%emt 0:00:00]} d6 {[%emt 0:00:00]} 3. Nc3 {[%emt 0:00:00]} e5 {[%emt 0:00:00]} 4. dxe5 {[%emt 0:01:54]} dxe5 {[%emt 0:00:00]} 5. Qxd8+ {[%emt 0:02:10]} Kxd8 {[%emt 0:00:00]} 6. Bg5 {[%emt 0:11:08]} Nbd7 {[%emt 0:09:43]} 7. O-O-O {[%emt 0:06:56]} c6 {[%emt 0:06:18]} 8. Nf3 {[%emt 0:14:49]} Kc7 {[%emt 0:05:51]} 9. a3 {[%emt 0:04:18]} a5 {[%emt 0:05:36]} 10. e3 {[%emt 0:04:35]} Ng4 {[%emt 0:13:30]} 11. Bh4 {[%emt 0:02:26]} f6 {[%emt 0:00:49]} 12. h3 {[%emt 0:03:30]} Nh6 {[%emt 0:02:43]} 13. g4 {[%emt 0:02:03]} a4 {[%emt 0:08:05]} 14. Bd3 {[%emt 0:04:04]} Nc5 {[%emt 0:04:18]} 15. g5 {[%emt 0:09:48]} Nf5 {[%emt 0:11:15]} 16. gxf6 {[%emt 0:04:23]} Nxh4 {[%emt 0:00:06]} 17. fxg7 {[%emt 0:02:06]} Bxg7 {[%emt 0:00:03]} 18. Nxh4 {[%emt 0:00:10]} Be6 {[%emt 0:00:28]} 19. Be2 {[%emt 0:05:50]} Bf6 {[%emt 0:04:52]} 20. Nf3 {[%emt 0:01:49]} Bf5 {[%emt 0:00:06]} 21. Nd2 {[%emt 0:04:32]} Bd3 {[%emt 0:00:31]} 22. Bf3 {[%emt 0:04:29]} Bh4 {[%emt 0:01:34]} 23. Nce4 {[%emt 0:01:24]} Bxe4 {[%emt 0:02:32]} 24. Nxe4 {[%emt 0:00:39]} Nb3+ {[%emt 0:07:46]} 25. Kb1 {[%emt 0:02:20]} Raf8 {[%emt 0:00:33]} 26. Bg4 {[%emt 0:00:40]} Bxf2 {[%emt 0:00:10]} 27. Rd7+ {[%emt 0:00:49]} Kb6 {[%emt 0:00:59]} 28. Nxf2 {[%emt 0:00:43]} Rxf2 {[%emt 0:00:06]} 29. Rhd1 {[%emt 0:00:31]} h5 {[%emt 0:00:44]} 30. Be6 {[%emt 0:00:33]} Rh6 {[%emt 0:03:16]} 31. Re7 {[%emt 0:01:21]} Rg6 {[%emt 0:02:15]} 32. c5+ {[%emt 0:03:10]} Nxc5 {[%emt 0:00:22]} 33. Bc4 {[%emt 0:00:36]} Rgg2 {[%emt 0:02:23]} 34. Rxe5 {[%emt 0:00:34]} Rxb2+ {[%emt 0:00:06]} 35. Ka1 {[%emt 0:00:04]} Nb3+ {[%emt 0:01:44]} 36. Bxb3 {[%emt 0:00:05]} axb3 {[%emt 0:00:06]} 37. Re4 {[%emt 0:00:40]} c5 {[%emt 0:03:17]} 38. a4 {[%emt 0:00:44]} Ra2+ {[%emt 0:01:02]} 39. Kb1 {[%emt 0:00:04]} Rgb2+ {[%emt 0:02:20]} 40. Kc1 {[%emt 0:00:00]} Rc2+ {[%emt 0:00:00]} 41. Kb1 {[%emt 0:00:15]} c4 {[%emt 0:09:56]} 42. Re6+ {[%emt 0:07:09]} Kc5 {[%emt 0:04:26]} 43. Re5+ {[%emt 0:08:00]} Kb4 {[%emt 0:00:19]} 44. Rb5+ {[%emt 0:01:31]} Ka3 {[%emt 0:00:47]} 45. Rc5 {[%emt 0:03:52]} Rcb2+ {[%emt 0:00:11]} 46. Kc1 {[%emt 0:00:08]} Ra1# {[%emt 0:00:04]} 0-1

[Event "EYCC Girls-U14 2019"]
[Site "Bratislava"]
[Date "2019.08.06"]
[Round "5.17"]
[White "Eraslan, Yagmur"]
[Black "Tsotsonava, Elene"]
[Result "0-1"]
[ECO "B49"]
[WhiteElo "1651"]
[BlackElo "1878"]
[Annotator "NA"]
[PlyCount "68"]
[EventDate "2019.08.02"]
[EventType "swiss"]
[EventCountry "SVK"]
[SourceTitle "playchess.com"]
[Source "ChessBase"]
[SourceQuality "1"]
[TimeControl "40/5400+30:1800+30"]

1. e4 {[%emt 0:00:00]} c5 {[%emt 0:00:00]} 2. Nf3 {[%emt 0:00:00]} e6 {[%emt 0:00:00]} 3. d4 {[%emt 0:00:00]} cxd4 {[%emt 0:00:04]} 4. Nxd4 {[%emt 0:00:00]} Nc6 {[%emt 0:00:06]} 5. Nc3 {[%emt 0:00:06]} Qc7 {[%emt 0:00:06]} 6. Be3 {[%emt 0:00:27]} a6 {[%emt 0:00:08]} 7. Be2 {[%emt 0:01:35]} Nf6 {[%emt 0:00:09]} 8. O-O {[%emt 0:01:38]} Bb4 {[%emt 0:00:13]} 9. f3 {[%emt 0:04:05]} O-O {[%emt 0:01:44]} 10. Nxc6 {[%emt 0:15:21]} bxc6 {[%emt 0:00:38]} 11. Qd4 {[%emt 0:04:48]} Rb8 {[%emt 0:05:29]} 12. Rad1 {[%emt 0:09:00]} Rd8 {[%emt 0:08:57]} 13. Na4 {[%emt 0:10:14]} e5 {[%emt 0:09:00]} 14. Qc4 {[%emt 0:04:34]} Qa5 {[%emt 0:01:58]} 15. b3 {[%emt 0:04:46]} d5 {[%emt 0:06:24]} 16. Qd3 {[%emt 0:07:56]} Be7 {[%emt 0:02:52]} 17. Bd2 {[%emt 0:09:57]} Qc7 {[%emt 0:02:49]} 18. Qe3 {[%emt 0:02:03]} Be6 {[%emt 0:11:50]} 19. Nc5 {[%emt 0:05:37]} Qb6 {[%emt 0:08:41]} 20. Nxe6 {[%emt 0:01:42]} Qxe3+ {[%emt 0:00:11]} 21. Bxe3 {[%emt 0:00:02]} fxe6 {[%emt 0:00:09]} 22. Bxa6 {[%emt 0:02:45]} Ra8 {[%emt 0:03:24]} 23. Bb7 {[%emt 0:03:17]} Rxa2 {[%emt 0:00:10]} 24. Bxc6 {[%emt 0:03:14]} Rc8 {[%emt 0:00:59]} 25. exd5 {[%emt 0:02:22]} exd5 {[%emt 0:00:55]} 26. Bxd5+ {[%emt 0:00:11]} Nxd5 {[%emt 0:00:08]} 27. Rxd5 {[%emt 0:00:07]} Rcxc2 {[%emt 0:00:20]} 28. Bf2 {[%emt 0:01:43]} Re2 {[%emt 0:06:11]} 29. Rb5 {[%emt 0:02:01]} Bg5 {[%emt 0:01:44]} 30. Rb8+ {[%emt 0:00:24]} Kf7 {[%emt 0:00:21]} 31. Rb7+ {[%emt 0:00:05]} Ke6 {[%emt 0:05:24]} 32. Rxg7 {[%emt 0:00:38]} Kf6 {[%emt 0:00:30]} 33. Rg8 {[%emt 0:00:36]} Rxf2 {[%emt 0:00:45]} 34. Rxf2 {[%emt 0:00:22]} Ra1+ {[%emt 0:00:18]} 0-1

[Event "EYCC Girls-U14 2019"]
[Site "Bratislava"]
[Date "2019.08.06"]
[Round "5.18"]
[White "Mikhailina, Elena"]
[Black "Kozachenko, Maria"]
[Result "0-1"]
[ECO "B90"]
[WhiteElo "1689"]
[BlackElo "1865"]
[Annotator "NA"]
[PlyCount "200"]
[EventDate "2019.08.02"]
[EventType "swiss"]
[EventCountry "SVK"]
[SourceTitle "playchess.com"]
[Source "ChessBase"]
[SourceQuality "1"]
[TimeControl "40/5400+30:1800+30"]

1. e4 {[%emt 0:00:00]} c5 {[%emt 0:00:00]} 2. Nf3 {[%emt 0:00:00]} d6 {[%emt 0:00:00]} 3. d4 {[%emt 0:00:00]} cxd4 {[%emt 0:00:06]} 4. Nxd4 {[%emt 0:00:00]} Nf6 {[%emt 0:00:09]} 5. Nc3 {[%emt 0:00:00]} a6 {[%emt 0:00:17]} 6. Be3 {[%emt 0:00:14]} e5 {[%emt 0:00:25]} 7. Nb3 {[%emt 0:00:05]} Be6 {[%emt 0:00:39]} 8. f3 {[%emt 0:00:09]} h5 {[%emt 0:00:15]} 9. a4 {[%emt 0:01:13]} Nc6 {[%emt 0:03:30]} 10. Be2 {[%emt 0:11:41]} Be7 {[%emt 0:04:24]} 11. O-O {[%emt 0:02:34]} O-O {[%emt 0:01:34]} 12. Qd2 {[%emt 0:14:32]} Qc7 {[%emt 0:13:49]} 13. Nd5 {[%emt 0:12:20]} Bxd5 {[%emt 0:02:48]} 14. exd5 {[%emt 0:00:06]} Nb8 {[%emt 0:01:27]} 15. a5 {[%emt 0:06:35]} Nbd7 {[%emt 0:03:05]} 16. Rfd1 {[%emt 0:01:47]} Rfc8 {[%emt 0:06:21]} 17. c4 {[%emt 0:02:46]} Bf8 {[%emt 0:03:33]} 18. Nc1 {[%emt 0:10:44]} g6 {[%emt 0:03:46]} 19. b4 {[%emt 0:01:44]} Bg7 {[%emt 0:01:53]} 20. Ra2 {[%emt 0:07:28]} e4 {[%emt 0:06:36]} 21. f4 {[%emt 0:00:26]} Kh7 {[%emt 0:04:40]} 22. Nb3 {[%emt 0:05:00]} Ng8 {[%emt 0:04:58]} 23. Rc1 {[%emt 0:10:57]} Ne7 {[%emt 0:02:24]} 24. Rac2 {[%emt 0:05:41]} Nf6 {[%emt 0:03:44]} 25. Nd4 {[%emt 0:02:27]} Qd7 {[%emt 0:02:48]} 26. Rb1 {[%emt 0:01:49]} Qd8 {[%emt 0:12:51]} 27. b5 {[%emt 0:02:08]} Nd7 {[%emt 0:02:26]} 28. Nb3 {[%emt 0:00:16]} axb5 {[%emt 0:01:16]} 29. cxb5 {[%emt 0:00:18]} Rxc2 {[%emt 0:00:12]} 30. Qxc2 {[%emt 0:00:01]} Nxd5 {[%emt 0:00:16]} 31. Bd2 {[%emt 0:01:36]} Qe7 {[%emt 0:01:00]} 32. g3 {[%emt 0:00:41]} f5 {[%emt 0:01:56]} 33. Rc1 {[%emt 0:00:34]} N7f6 {[%emt 0:02:47]} 34. a6 {[%emt 0:00:25]} bxa6 {[%emt 0:02:38]} 35. bxa6 {[%emt 0:00:02]} Qa7+ {[%emt 0:00:18]} 36. Kh1 {[%emt 0:00:40]} Ne8 {[%emt 0:01:45]} 37. Na5 {[%emt 0:00:31]} Qf2 {[%emt 0:02:28]} 38. Be1 {[%emt 0:00:10]} Qe3 {[%emt 0:01:27]} 39. Nc4 {[%emt 0:00:46]} Qa7 {[%emt 0:00:59]} 40. Na5 {[%emt 0:00:00]} Ndc7 {[%emt 0:00:00]} 41. Nc6 {[%emt 0:03:23]} Qe3 {[%emt 0:05:56]} 42. a7 {[%emt 0:03:04]} d5 {[%emt 0:03:59]} 43. Rb1 {[%emt 0:06:32]} d4 {[%emt 0:03:53]} 44. Qd2 {[%emt 0:08:00]} Qa3 {[%emt 0:06:19]} 45. Qa5 {[%emt 0:03:07]} Qe3 {[%emt 0:06:06]} 46. Qd2 {[%emt 0:00:06]} Qxd2 {[%emt 0:00:33]} 47. Bxd2 {[%emt 0:00:05]} d3 {[%emt 0:00:19]} 48. Bf1 {[%emt 0:01:19]} Nd6 {[%emt 0:02:06]} 49. Rb4 {[%emt 0:01:53]} Ndb5 {[%emt 0:01:40]} 50. Ra4 {[%emt 0:03:52]} Kg8 {[%emt 0:01:29]} 51. Be3 {[%emt 0:03:34]} Kf7 {[%emt 0:00:59]} 52. Kg1 {[%emt 0:01:12]} Ke6 {[%emt 0:00:46]} 53. Bg2 {[%emt 0:01:06]} Bc3 {[%emt 0:01:47]} 54. Kf2 {[%emt 0:00:41]} Kd6 {[%emt 0:00:46]} 55. Nd4 {[%emt 0:00:33]} Bxd4 {[%emt 0:00:27]} 56. Bxd4 {[%emt 0:00:01]} Nxd4 {[%emt 0:00:09]} 57. Rxd4+ {[%emt 0:00:06]} Nd5 {[%emt 0:00:58]} 58. Ra4 {[%emt 0:00:32]} Kc5 {[%emt 0:00:48]} 59. h3 {[%emt 0:00:30]} Nb6 {[%emt 0:00:45]} 60. Ra5+ {[%emt 0:00:37]} Kb4 {[%emt 0:00:27]} 61. Ra6 {[%emt 0:01:01]} Nc4 {[%emt 0:01:24]} 62. g4 {[%emt 0:00:28]} hxg4 {[%emt 0:01:22]} 63. hxg4 {[%emt 0:00:05]} Kb5 {[%emt 0:00:42]} 64. Ra1 {[%emt 0:00:17]} Na5 {[%emt 0:00:49]} 65. gxf5 {[%emt 0:00:26]} gxf5 {[%emt 0:00:07]} 66. Bh3 {[%emt 0:00:14]} Rxa7 {[%emt 0:00:23]} 67. Bxf5 {[%emt 0:00:28]} e3+ {[%emt 0:00:25]} 68. Kf3 {[%emt 0:01:11]} d2 {[%emt 0:00:47]} 69. Rb1+ {[%emt 0:00:33]} Kc4 {[%emt 0:00:33]} 70. Kxe3 {[%emt 0:00:37]} Kc3 {[%emt 0:00:10]} 71. Bg4 {[%emt 0:00:43]} Re7+ {[%emt 0:00:51]} 72. Kf2 {[%emt 0:00:13]} Nb3 {[%emt 0:00:40]} 73. Rh1 {[%emt 0:00:43]} Nc1 {[%emt 0:00:17]} 74. Rh8 {[%emt 0:00:47]} Nd3+ {[%emt 0:00:13]} 75. Kg3 {[%emt 0:00:30]} Re3+ {[%emt 0:00:13]} 76. Kh4 {[%emt 0:00:30]} Nxf4 {[%emt 0:00:52]} 77. Rc8+ {[%emt 0:00:04]} Kd4 {[%emt 0:00:11]} 78. Rd8+ {[%emt 0:00:07]} Nd5 {[%emt 0:00:19]} 79. Bh5 {[%emt 0:00:34]} Re4+ {[%emt 0:00:14]} 80. Kg3 {[%emt 0:00:12]} Re5 {[%emt 0:00:27]} 81. Bf3 {[%emt 0:00:13]} Ke3 {[%emt 0:00:12]} 82. Bd1 {[%emt 0:00:46]} Nc3 {[%emt 0:00:22]} 83. Bc2 {[%emt 0:00:23]} Ne4+ {[%emt 0:00:13]} 84. Kg4 {[%emt 0:00:33]} Nf6+ {[%emt 0:00:21]} 85. Kg3 {[%emt 0:00:21]} Nd5 {[%emt 0:00:28]} 86. Kg2 {[%emt 0:01:16]} Ke2 {[%emt 0:00:22]} 87. Kg3 {[%emt 0:00:25]} Re3+ {[%emt 0:00:57]} 88. Kg2 {[%emt 0:00:42]} Nb4 {[%emt 0:00:32]} 89. Ba4 {[%emt 0:00:16]} Nd3 {[%emt 0:00:28]} 90. Rd7 {[%emt 0:01:02]} Nc5 {[%emt 0:01:13]} 91. Bb5+ {[%emt 0:00:25]} Ke1 {[%emt 0:00:20]} 92. Rh7 {[%emt 0:00:29]} d1=Q {[%emt 0:00:25]} 93. Rh1+ {[%emt 0:00:08]} Kd2 {[%emt 0:00:05]} 94. Rxd1+ {[%emt 0:00:06]} Kxd1 {[%emt 0:00:05]} 95. Kf2 {[%emt 0:00:06]} Kd2 {[%emt 0:00:11]} 96. Bc4 {[%emt 0:00:10]} Nd3+ {[%emt 0:00:19]} 97. Kg2 {[%emt 0:00:09]} Ke1 {[%emt 0:00:10]} 98. Kg1 {[%emt 0:00:11]} Rg3+ {[%emt 0:00:50]} 99. Kh2 {[%emt 0:00:03]} Kf2 {[%emt 0:00:09]} 100. Bd5 {[%emt 0:00:16]} Nf4 {[%emt 0:00:16]} 0-1

[Event "EYCC Girls-U14 2019"]
[Site "Bratislava"]
[Date "2019.08.06"]
[Round "5.19"]
[White "Blokhin, Sofia"]
[Black "Alekseenko, Mariya"]
[Result "0-1"]
[ECO "B41"]
[WhiteElo "1725"]
[BlackElo "1848"]
[Annotator "NA"]
[PlyCount "54"]
[EventDate "2019.08.02"]
[EventType "swiss"]
[EventCountry "SVK"]
[SourceTitle "playchess.com"]
[Source "ChessBase"]
[SourceQuality "1"]
[TimeControl "40/5400+30:1800+30"]

1. e4 {[%emt 0:00:00]} c5 {[%emt 0:00:00]} 2. Nf3 {[%emt 0:00:00]} e6 {[%emt 0:00:00]} 3. d4 {[%emt 0:00:00]} cxd4 {[%emt 0:00:00]} 4. Nxd4 {[%emt 0:00:00]} a6 {[%emt 0:00:00]} 5. c4 {[%emt 0:00:05]} Nc6 {[%emt 0:00:09]} 6. a3 {[%emt 0:01:08]} Nf6 {[%emt 0:01:26]} 7. Nc3 {[%emt 0:00:16]} Qc7 {[%emt 0:07:19]} 8. Be2 {[%emt 0:01:06]} b6 {[%emt 0:03:15]} 9. Be3 {[%emt 0:00:44]} Bb7 {[%emt 0:03:29]} 10. Qc2 {[%emt 0:03:12]} Be7 {[%emt 0:07:35]} 11. O-O {[%emt 0:02:00]} Rc8 {[%emt 0:00:12]} 12. Rac1 {[%emt 0:23:55]} Ne5 {[%emt 0:05:37]} 13. h3 {[%emt 0:04:23]} O-O {[%emt 0:03:05]} 14. f4 {[%emt 0:05:35]} Ng6 {[%emt 0:18:15]} 15. e5 {[%emt 0:11:26]} Ne8 {[%emt 0:01:21]} 16. Ne4 {[%emt 0:05:19]} d6 {[%emt 0:09:23]} 17. exd6 {[%emt 0:01:33]} Nxd6 {[%emt 0:00:27]} 18. Nf2 {[%emt 0:06:25]} Nh4 {[%emt 0:07:12]} 19. g4 {[%emt 0:08:52]} Bf6 {[%emt 0:02:43]} 20. Kh2 {[%emt 0:05:38]} e5 {[%emt 0:05:57]} 21. Nf5 {[%emt 0:01:25]} Ndxf5 {[%emt 0:00:41]} 22. gxf5 {[%emt 0:02:46]} exf4 {[%emt 0:00:05]} 23. Bxb6 {[%emt 0:01:19]} Qxb6 {[%emt 0:00:49]} 24. Ng4 {[%emt 0:00:14]} f3 25. Bd3 {[%emt 0:00:57]} Bg5 {[%emt 0:06:04]} 26. Rcd1 {[%emt 0:00:46]} Qd6+ {[%emt 0:01:41]} 27. Kh1 {[%emt 0:00:19]} Qg3 {[%emt 0:00:09]} 0-1

[Event "EYCC Girls-U14 2019"]
[Site "Bratislava"]
[Date "2019.08.06"]
[Round "5.20"]
[White "Kucharska, Helena"]
[Black "Katter, Katharina"]
[Result "1/2-1/2"]
[ECO "C54"]
[WhiteElo "1543"]
[BlackElo "1824"]
[Annotator "NA"]
[PlyCount "54"]
[EventDate "2019.08.02"]
[EventType "swiss"]
[EventCountry "SVK"]
[SourceTitle "playchess.com"]
[Source "ChessBase"]
[SourceQuality "1"]
[TimeControl "40/5400+30:1800+30"]

1. e4 {[%emt 0:00:00]} e5 {[%emt 0:00:00]} 2. Nf3 {[%emt 0:00:00]} Nc6 {[%emt 0:00:00]} 3. Bc4 {[%emt 0:00:14]} Bc5 {[%emt 0:00:11]} 4. c3 {[%emt 0:00:15]} Nf6 {[%emt 0:00:36]} 5. d3 {[%emt 0:00:22]} d6 {[%emt 0:02:42]} 6. h3 {[%emt 0:01:21]} a6 {[%emt 0:00:34]} 7. Nbd2 {[%emt 0:02:11]} Ba7 {[%emt 0:05:31]} 8. Bb3 {[%emt 0:02:15]} O-O {[%emt 0:03:10]} 9. Nf1 {[%emt 0:00:49]} d5 {[%emt 0:05:06]} 10. Qe2 {[%emt 0:01:04]} dxe4 {[%emt 0:06:10]} 11. dxe4 {[%emt 0:00:19]} Qe7 {[%emt 0:03:02]} 12. Ng3 {[%emt 0:01:44]} Bd7 {[%emt 0:05:28]} 13. O-O {[%emt 0:04:46]} Rad8 {[%emt 0:06:06]} 14. Bc2 {[%emt 0:12:40]} Rfe8 {[%emt 0:07:51]} 15. Nh4 {[%emt 0:05:50]} Na5 {[%emt 0:11:56]} 16. Nhf5 {[%emt 0:02:06]} Qe6 {[%emt 0:01:51]} 17. Qf3 {[%emt 0:06:18]} Bb5 {[%emt 0:02:45]} 18. Re1 {[%emt 0:04:39]} Rd7 {[%emt 0:03:51]} 19. Bg5 {[%emt 0:06:39]} c5 {[%emt 0:06:22]} 20. Rad1 {[%emt 0:04:28]} Red8 {[%emt 0:03:14]} 21. Nh5 {[%emt 0:06:09]} Rxd1 {[%emt 0:03:26]} 22. Nxf6+ {[%emt 0:00:43]} Qxf6 {[%emt 0:10:07]} 23. Bxf6 {[%emt 0:04:14]} Rxe1+ {[%emt 0:00:07]} 24. Kh2 {[%emt 0:00:12]} gxf6 {[%emt 0:00:32]} 25. Qg4+ {[%emt 0:01:01]} Kf8 {[%emt 0:00:06]} 26. Qg7+ {[%emt 0:00:35]} Ke8 {[%emt 0:00:06]} 27. Qxf6 {[%emt 0:02:01]} Nc6 {[%emt 0:00:58]} 1/2-1/2

[Event "EYCC Girls-U14 2019"]
[Site "Bratislava"]
[Date "2019.08.06"]
[Round "5.21"]
[White "Mihelic, Vesna"]
[Black "Dakic, Marta"]
[Result "1/2-1/2"]
[ECO "B28"]
[WhiteElo "1844"]
[BlackElo "1680"]
[Annotator "NA"]
[PlyCount "47"]
[EventDate "2019.08.02"]
[EventType "swiss"]
[EventCountry "SVK"]
[SourceTitle "playchess.com"]
[Source "ChessBase"]
[SourceQuality "1"]
[TimeControl "40/5400+30:1800+30"]

1. e4 {[%emt 0:00:00]} c5 {[%emt 0:00:00]} 2. Nf3 {[%emt 0:00:00]} a6 {[%emt 0:00:00]} 3. c3 {[%emt 0:00:00]} d5 {[%emt 0:00:00]} 4. exd5 {[%emt 0:00:00]} Nf6 {[%emt 0:00:10]} 5. c4 {[%emt 0:05:58]} e6 {[%emt 0:00:13]} 6. dxe6 {[%emt 0:02:09]} Bxe6 {[%emt 0:00:08]} 7. d4 {[%emt 0:01:21]} cxd4 {[%emt 0:00:13]} 8. Nxd4 {[%emt 0:07:08]} Bc5 {[%emt 0:01:17]} 9. Be3 {[%emt 0:07:39]} Ng4 {[%emt 0:01:37]} 10. Nxe6 {[%emt 0:08:02]} Qxd1+ {[%emt 0:00:37]} 11. Kxd1 {[%emt 0:00:01]} Bxe3 {[%emt 0:00:25]} 12. fxe3 {[%emt 0:05:08]} fxe6 {[%emt 0:00:14]} 13. Ke2 {[%emt 0:03:47]} O-O {[%emt 0:02:14]} 14. h3 {[%emt 0:02:18]} Nf2 {[%emt 0:10:46]} 15. Rg1 {[%emt 0:04:10]} Ne4 {[%emt 0:01:38]} 16. Ke1 {[%emt 0:06:36]} Ng3 {[%emt 0:07:19]} 17. Bd3 {[%emt 0:07:37]} Nd7 {[%emt 0:05:42]} 18. Na3 {[%emt 0:05:08]} Ne5 {[%emt 0:05:52]} 19. Rd1 {[%emt 0:09:23]} Rad8 {[%emt 0:07:28]} 20. Be2 {[%emt 0:05:47]} Rxd1+ {[%emt 0:03:15]} 21. Bxd1 {[%emt 0:00:26]} Nd3+ {[%emt 0:01:20]} 22. Kd2 {[%emt 0:00:10]} Nxb2 {[%emt 0:00:53]} 23. Bf3 {[%emt 0:00:51]} Na4 {[%emt 0:04:46]} 24. Rd1 {[%emt 0:06:20]} 1/2-1/2